bitfinex/quotes_BTCUSD_20250324
["timestamp","ask_amount","ask_price","bid_price","bid_amount"]
[1742847584025,0.0003398,88501.0,88500.0,0.62696216]
[1742847584204,0.0003398,88501.0,88500.0,0.62996216]
[1742847595444,0.0003398,88501.0,88500.0,0.62992216]
[1742847596650,0.0003398,88501.0,88500.0,1.14538581]
[1742847597456,0.0003398,88501.0,88500.0,1.01910581]
[1742847597715,0.0003398,88501.0,88500.0,1.14538581]
[1742847599177,0.0003398,88501.0,88500.0,0.66780117]
[1742847599178,0.2376248,88501.0,88500.0,0.66780117]
[1742847599578,0.24356072,88501.0,88500.0,0.66780117]
[1742847600501,0.24356072,88501.0,88500.0,0.66480117]
[1742847601322,0.23226172,88501.0,88500.0,0.66480117]
[1742847601516,0.00727572,88501.0,88500.0,0.66480117]
[1742847601747,0.23326172,88501.0,88500.0,0.66480117]
[1742847601936,0.2386248,88501.0,88500.0,0.66480117]
[1742847602092,0.24456072,88501.0,88500.0,0.66480117]
[1742847606096,0.00727572,88501.0,88500.0,0.66480117]
[1742847606253,0.23326172,88501.0,88500.0,0.66480117]
[1742847606698,0.23326172,88501.0,88500.0,0.97038917]
[1742847606699,0.00727572,88501.0,88500.0,0.97038917]
[1742847606900,0.00727572,88501.0,88500.0,0.95840681]
[1742847607074,0.0013398,88501.0,88500.0,1.08464681]
[1742847607797,0.0072282,88501.0,88500.0,1.08464681]
[1742847608029,0.0013398,88501.0,88500.0,1.08464681]
[1742847609720,0.0072282,88501.0,88500.0,1.08464681]
[1742847610331,0.0013398,88501.0,88500.0,1.08464681]
[1742847610553,0.0072282,88501.0,88500.0,1.08464681]
[1742847610766,0.0013398,88501.0,88500.0,1.08464681]
[1742847610918,0.0013398,88501.0,88500.0,0.54712681]
[1742847611270,0.0072282,88501.0,88500.0,0.54712681]
[1742847614449,0.0072282,88501.0,88500.0,0.34350367]
[1742847615074,0.0072282,88501.0,88500.0,0.56949167]
[1742847616245,0.0072282,88501.0,88500.0,0.34350367]
[1742847620221,0.0072282,88501.0,88500.0,0.56949167]
[1742847621047,0.0072282,88501.0,88500.0,0.54712681]
[1742847622051,0.0072282,88501.0,88500.0,0.32113881]
[1742847622225,0.0072282,88501.0,88500.0,0.54712681]
[1742847622597,0.0072282,88501.0,88500.0,0.42088681]
[1742847622723,0.0072282,88501.0,88500.0,0.54712681]
[1742847627129,0.0072282,88501.0,88500.0,0.32113881]
[1742847628485,0.0072282,88501.0,88500.0,0.54712681]
[1742847628618,0.0072282,88501.0,88500.0,0.32113881]
[1742847629838,0.2332142,88501.0,88500.0,0.32113881]
[1742847631365,0.23913331,88501.0,88500.0,0.32113881]
[1742847639423,0.25043231,88501.0,88500.0,0.32113881]
[1742847640429,0.25043231,88501.0,88500.0,0.24153881]
[1742847640631,0.25043231,88501.0,88500.0,0.00104117]
[1742847640807,0.63063231,88501.0,88500.0,0.00104117]
[1742847641724,0.62963231,88501.0,88500.0,4.117e-05]
[1742847642068,0.63763231,88501.0,88500.0,4.117e-05]
[1742847642271,0.75188995,88501.0,88500.0,4.117e-05]
[1742847642467,0.91144759,88501.0,88500.0,4.117e-05]
[1742847642672,0.92264828,88501.0,88500.0,4.117e-05]
[1742847644166,0.53729,88499.0,88498.0,7.7e-07]
[1742847644343,0.73174764,88499.0,88498.0,7.7e-07]
[1742847644705,0.92795384,88499.0,88498.0,7.7e-07]
[1742847645502,0.92795384,88499.0,88489.0,0.0003394]
[1742847645503,0.617514,88490.0,88489.0,1.7e-07]
[1742847645660,0.73177164,88490.0,88489.0,1.7e-07]
[1742847645859,0.74342453,88490.0,88489.0,1.7e-07]
[1742847646270,0.78872453,88490.0,88489.0,1.7e-07]
[1742847646499,0.83216205,88490.0,88489.0,1.7e-07]
[1742847646737,0.83221766,88490.0,88489.0,1.7e-07]
[1742847647731,0.83421766,88490.0,88489.0,1.7e-07]
[1742847648107,0.83221766,88490.0,88489.0,1.7e-07]
[1742847648436,1.27165851,88490.0,88489.0,1.7e-07]
[1742847649662,1.26865851,88490.0,88489.0,1.7e-07]
[1742847650424,1.28671074,88490.0,88489.0,1.7e-07]
[1742847650832,1.29171074,88490.0,88489.0,1.7e-07]
[1742847651037,1.29671074,88490.0,88489.0,1.7e-07]
[1742847652683,0.691344,88479.0,88478.0,7.7e-07]
[1742847652858,1.24845945,88479.0,88478.0,7.7e-07]
[1742847653482,1.25675781,88479.0,88478.0,7.7e-07]
[1742847654290,1.25675781,88479.0,88463.0,0.0003398]
[1742847654291,0.55191885,88466.0,88465.0,7.7e-07]
[1742847654490,0.79178272,88466.0,88465.0,7.7e-07]
[1742847654719,1.20868272,88466.0,88465.0,7.7e-07]
[1742847655533,1.08388423,88466.0,88465.0,7.7e-07]
[1742847655760,1.07988423,88466.0,88465.0,7.7e-07]
[1742847656151,1.08488423,88466.0,88465.0,7.7e-07]
[1742847657434,1.08988423,88466.0,88465.0,7.7e-07]
[1742847659344,1.11278105,88466.0,88465.0,7.7e-07]
[1742847659515,1.22703869,88466.0,88465.0,7.7e-07]
[1742847668611,1.11278105,88466.0,88465.0,7.7e-07]
[1742847669434,0.97562659,88466.0,88465.0,7.7e-07]
[1742847671018,0.55872659,88466.0,88465.0,7.7e-07]
[1742847671974,0.55906639,88466.0,88465.0,7.7e-07]
[1742847672336,0.25906639,88466.0,88465.0,7.7e-07]
[1742847672742,0.25906639,88466.0,88465.0,0.04600077]
[1742847673127,0.2855784,88466.0,88465.0,0.04600077]
[1742847673331,0.5805784,88466.0,88465.0,0.04600077]
[1742847673532,0.5755784,88466.0,88465.0,0.04600077]
[1742847673746,0.5845784,88466.0,88465.0,0.04600077]
[1742847673946,0.55806639,88466.0,88465.0,0.04600077]
[1742847674151,0.55306639,88466.0,88465.0,0.04600077]
[1742847674803,0.55806639,88466.0,88465.0,0.04600077]
[1742847675020,0.55406639,88466.0,88465.0,0.04600077]
[1742847675423,0.55706639,88466.0,88465.0,0.04600077]
[1742847676030,0.55706639,88466.0,88465.0,0.17228077]
[1742847677563,0.55706639,88466.0,88465.0,0.12628077]
[1742847677773,0.60527863,88466.0,88465.0,0.12628077]
[1742847679734,0.55706639,88466.0,88465.0,0.12628077]
[1742847685201,0.51836939,88466.0,88465.0,0.12628077]
[1742847693089,0.51836939,88466.0,88465.0,7.7e-07]
[1742847709211,0.51836939,88466.0,88465.0,0.07750077]
[1742847713031,0.51485242,88466.0,88465.0,0.07750077]
[1742847715929,0.51485242,88466.0,88465.0,7.7e-07]
[1742847717923,0.62911006,88466.0,88465.0,7.7e-07]
[1742847718123,0.537384,88464.0,88463.0,5.7e-07]
[1742847718323,0.65946713,88464.0,88463.0,5.7e-07]
[1742847719393,0.66446713,88464.0,88463.0,5.7e-07]
[1742847720660,0.66946713,88464.0,88463.0,5.7e-07]
[1742847720883,0.78372477,88464.0,88463.0,5.7e-07]
[1742847721895,0.83032477,88464.0,88463.0,5.7e-07]
[1742847722865,0.537416,88452.0,88451.0,5.7e-07]
[1742847723095,1.14487364,88452.0,88451.0,5.7e-07]
[1742847723330,1.26681503,88452.0,88451.0,5.7e-07]
[1742847724128,1.27681503,88452.0,88451.0,0.00041173]
[1742847724584,1.27681503,88452.0,88451.0,7.3e-07]
[1742847725556,1.28808822,88452.0,88451.0,7.3e-07]
[1742847725763,0.237435,88445.0,88439.0,9.3e-07]
[1742847725972,0.237435,88445.0,88439.0,1.8e-07]
[1742847725973,0.537449,88440.0,88439.0,1.8e-07]
[1742847726165,0.66624749,88440.0,88439.0,1.8e-07]
[1742847726325,0.67389701,88440.0,88439.0,1.8e-07]
[1742847726956,0.54509852,88440.0,88439.0,1.8e-07]
[1742847727157,0.02195652,88440.0,88439.0,0.17404018]
[1742847727378,0.36235616,88440.0,88439.0,1.8e-07]
[1742847727579,0.36235616,88440.0,88439.0,0.12624018]
[1742847727580,0.46565698,88440.0,88439.0,0.12624018]
[1742847727774,0.66235616,88440.0,88439.0,0.12624018]
[1742847727978,0.55309852,88440.0,88439.0,0.12624018]
[1742847730235,0.55309852,88440.0,88439.0,0.12641008]
[1742847731889,0.55309852,88440.0,88439.0,0.00017008]
[1742847732079,0.55309852,88440.0,88439.0,0.12641008]
[1742847737709,0.57849164,88440.0,88439.0,0.12641008]
[1742847738494,0.55309852,88440.0,88439.0,0.12641008]
[1742847742497,0.55343832,88440.0,88439.0,0.12641008]
[1742847743016,0.55343832,88440.0,88439.0,0.20961008]
[1742847743382,0.55343832,88440.0,88439.0,0.25751008]
[1742847752859,0.55343832,88440.0,88439.0,0.17431008]
[1742847755708,0.55343832,88440.0,88439.0,0.12641008]
[1742847761400,0.69791664,88440.0,88439.0,8e-08]
[1742847761781,0.66769596,88440.0,88439.0,8e-08]
[1742847762583,0.65969596,88440.0,88439.0,8e-08]
[1742847762790,0.66369596,88440.0,88439.0,8e-08]
[1742847763094,0.66869596,88440.0,88439.0,8e-08]
[1742847767856,0.66369596,88440.0,88439.0,8e-08]
[1742847768054,0.7779536,88440.0,88439.0,8e-08]
[1742847768275,0.7789536,88440.0,88439.0,8e-08]
[1742847768618,0.7839536,88440.0,88439.0,8e-08]
[1742847770982,1.2008536,88440.0,88439.0,8e-08]
[1742847775938,1.21539445,88440.0,88439.0,8e-08]
[1742847776134,0.537497,88422.0,88421.0,8.8e-07]
[1742847776468,1.07619925,88422.0,88421.0,8.8e-07]
[1742847777020,1.08465047,88422.0,88421.0,8.8e-07]
[1742847777303,1.08965047,88422.0,88421.0,8.8e-07]
[1742847778531,1.08465047,88422.0,88421.0,8.8e-07]
[1742847778735,1.08865047,88422.0,88421.0,8.8e-07]
[1742847778868,1.13708799,88422.0,88421.0,8.8e-07]
[1742847779695,1.09365047,88422.0,88421.0,8.8e-07]
[1742847780172,1.1163297,88422.0,88421.0,8.8e-07]
[1742847789291,1.1163297,88422.0,88421.0,0.00017068]
[1742847789972,1.10787848,88422.0,88421.0,0.00017068]
[1742847790310,1.08519925,88422.0,88421.0,0.00017068]
[1742847791479,1.19945689,88422.0,88421.0,0.00017068]
[1742847792643,0.97094161,88422.0,88421.0,0.00017068]
[1742847793864,1.08519925,88422.0,88421.0,6.8e-07]
[1742847794105,1.0997401,88422.0,88421.0,6.8e-07]
[1742847794516,1.08519925,88422.0,88421.0,6.8e-07]
[1742847796059,1.08519925,88422.0,88421.0,0.07520068]
[1742847798384,1.19897728,88422.0,88421.0,0.07520068]
[1742847798739,1.19897728,88422.0,88421.0,6.8e-07]
[1742847801883,1.19931688,88422.0,88421.0,6.8e-07]
[1742847803378,1.08553885,88422.0,88421.0,6.8e-07]
[1742847806825,0.97128121,88422.0,88421.0,6.8e-07]
[1742847806976,0.97128121,88422.0,88421.0,0.04570068]
[1742847808078,0.97128121,88422.0,88421.0,6.8e-07]
[1742847808895,0.55438121,88422.0,88421.0,6.8e-07]
[1742847809093,0.66863885,88422.0,88421.0,6.8e-07]
[1742847810740,0.55438121,88422.0,88421.0,0.08130068]
[1742847811832,0.66863885,88422.0,88421.0,6.8e-07]
[1742847820621,1.08553885,88422.0,88421.0,6.8e-07]
[1742847823331,0.66863885,88422.0,88421.0,6.8e-07]
[1742847824230,0.66863885,88422.0,88421.0,0.12670068]
[1742847824231,0.55438121,88422.0,88421.0,0.12670068]
[1742847824975,0.25438121,88422.0,88421.0,0.12670068]
[1742847825385,0.55438121,88422.0,88421.0,0.12670068]
[1742847825597,0.25438121,88422.0,88421.0,0.12670068]
[1742847825827,0.54938121,88422.0,88421.0,0.12670068]
[1742847826032,0.24938121,88422.0,88421.0,0.12670068]
[1742847826235,0.01688421,88422.0,88421.0,0.13937075]
[1742847826448,0.01688421,88422.0,88421.0,0.49176075]
[1742847826662,0.5093396,88422.0,88421.0,0.60465732]
[1742847826871,0.51596999,88422.0,88421.0,0.60465732]
[1742847827070,0.51596999,88422.0,88421.0,0.48662132]
[1742847827278,0.51096999,88422.0,88421.0,0.48662132]
[1742847827696,0.51196999,88422.0,88421.0,0.48662132]
[1742847828104,0.51496999,88422.0,88421.0,0.48662132]
[1742847828333,0.51196999,88422.0,88421.0,0.48662132]
[1742847828754,0.0003396,88428.0,88427.0,0.237483]
[1742847828959,0.0003398,88440.0,88439.0,0.237451]
[1742847829173,0.0003398,88440.0,88439.0,0.47786864]
[1742847829377,0.0003398,88440.0,88439.0,0.46656164]
[1742847829589,0.0116468,88440.0,88439.0,0.24041764]
[1742847829966,0.0003398,88440.0,88439.0,0.24041764]
[1742847830183,0.0003398,88440.0,88439.0,0.32161764]
[1742847832618,0.0116468,88440.0,88439.0,0.32161764]
[1742847832810,0.0003398,88440.0,88439.0,0.32161764]
[1742847833889,0.0003398,88440.0,88439.0,0.26530449]
[1742847834399,0.2264818,88440.0,88439.0,0.26530449]
[1742847834645,0.2377888,88440.0,88439.0,0.26530449]
[1742847836035,0.2377888,88440.0,88439.0,0.20736]
[1742847836248,0.237485,88426.0,88425.0,0.0225]
[1742847836558,0.237485,88426.0,88425.0,0.26287764]
[1742847836559,0.00571005,88426.0,88425.0,0.26287764]
[1742847836889,0.226177,88427.0,88425.0,0.30747415]
[1742847837040,0.00570918,88426.0,88425.0,0.30747415]
[1742847838463,0.011308,88428.0,88426.0,0.01454085]
[1742847838673,0.00580086,88427.0,88426.0,0.12879849]
[1742847838877,0.00580086,88427.0,88425.0,0.20832]
[1742847839080,0.00580086,88427.0,88425.0,0.31857764]
[1742847839781,0.226172,88429.0,88425.0,0.31857764]
[1742847840004,0.00579565,88426.0,88425.0,0.31857764]
[1742847840228,0.011308,88430.0,88425.0,0.31857764]
[1742847840557,0.01710309,88429.0,88425.0,0.31857764]
[1742847840761,0.00579509,88429.0,88425.0,0.54475764]
[1742847841250,0.23196509,88429.0,88425.0,0.31857764]
[1742847841695,0.226176,88427.0,88426.0,0.01454085]
[1742847841919,0.226176,88427.0,88425.0,0.28126368]
[1742847842135,0.23197128,88427.0,88425.0,0.28126368]
[1742847842567,0.23197128,88427.0,88421.0,0.0001698]
[1742847842568,0.237497,88422.0,88421.0,0.0001698]
[1742847842774,0.237497,88422.0,88421.0,0.1262898]
[1742847842982,0.226201,88417.0,88411.0,0.19186065]
[1742847843185,0.226204,88416.0,88411.0,0.32917219]
[1742847843375,0.23198483,88416.0,88411.0,0.32917219]
[1742847843623,0.00578083,88416.0,88412.0,0.12612]
[1742847843803,0.00578083,88416.0,88413.0,0.01454085]
[1742847844954,0.226201,88417.0,88415.0,0.01454085]
[1742847845832,0.237512,88418.0,88415.0,0.01454085]
[1742847846585,0.011309,88419.0,88415.0,0.01554085]
[1742847846586,0.226196,88419.0,88415.0,0.01554085]
[1742847846771,0.226198,88418.0,88415.0,0.01554085]
[1742847847850,0.226198,88418.0,88415.0,0.01454085]
[1742847848114,0.226198,88418.0,88415.0,0.01554085]
[1742847848250,0.226196,88419.0,88415.0,0.01554085]
[1742847848462,0.237502,88420.0,88415.0,0.01554085]
[1742847848644,0.226193,88420.0,88415.0,0.001]
[1742847848850,0.226197,88419.0,88415.0,0.001]
[1742847849151,0.226197,88419.0,88414.0,0.307708]
[1742847849977,0.226193,88420.0,88414.0,0.307708]
[1742847851612,0.237504,88421.0,88415.0,0.226205]
[1742847851772,0.226193,88420.0,88415.0,0.226205]
[1742847851973,0.226193,88420.0,88414.0,0.307708]
[1742847852966,0.226197,88419.0,88415.0,0.12612]
[1742847853208,0.226198,88418.0,88415.0,0.12612]
[1742847853397,0.011309,88420.0,88415.0,0.12612]
[1742847853792,0.237504,88420.0,88415.0,0.12612]
[1742847854203,0.226195,88420.0,88415.0,0.352325]
[1742847854511,0.226195,88420.0,88415.0,0.12612]
[1742847855063,0.226203,88417.0,88415.0,0.12612]
[1742847855192,0.226201,88417.0,88415.0,0.12612]
[1742847855393,0.237506,88419.0,88415.0,0.12612]
[1742847855627,0.226197,88419.0,88415.0,0.12612]
[1742847855818,0.226193,88420.0,88415.0,0.12612]
[1742847856023,0.22619,88421.0,88416.0,0.226203]
[1742847856226,0.00572625,88419.0,88415.0,0.353325]
[1742847856381,0.226196,88419.0,88415.0,0.12712]
[1742847856582,0.2262,88417.0,88415.0,0.12712]
[1742847856785,0.24323325,88418.0,88415.0,0.12712]
[1742847857027,0.237507,88418.0,88415.0,0.12712]
[1742847857243,0.00572625,88417.0,88415.0,0.12712]
[1742847857668,0.23192725,88417.0,88415.0,0.12712]
[1742847857981,0.226203,88416.0,88415.0,0.12612]
[1742847858107,0.23192725,88417.0,88415.0,0.12612]
[1742847858303,0.226203,88416.0,88415.0,0.12612]
[1742847858566,0.23193404,88416.0,88415.0,0.12612]
[1742847858787,0.00573104,88416.0,88415.0,0.12612]
[1742847858999,0.00573104,88416.0,88415.0,0.12712]
[1742847859403,0.23193404,88416.0,88415.0,0.12612]
[1742847859611,0.23193404,88416.0,88415.0,0.12712]
[1742847860022,0.00573104,88416.0,88415.0,0.12712]
[1742847860219,0.226191,88421.0,88415.0,0.353325]
[1742847860481,0.226191,88421.0,88415.0,0.12712]
[1742847860482,0.00573017,88420.0,88415.0,0.12712]
[1742847861013,0.00573017,88420.0,88416.0,0.226202]
[1742847861190,0.00573017,88420.0,88417.0,0.226199]
[1742847861418,0.00042304,88422.0,88416.0,0.226202]
[1742847861611,0.00572843,88419.0,88416.0,0.226202]
[1742847861819,0.226193,88420.0,88415.0,0.352325]
[1742847861951,0.0057293,88418.0,88415.0,0.352325]
[1742847862149,0.00573017,88419.0,88415.0,0.352325]
[1742847862355,0.226192,88421.0,88416.0,0.226202]
[1742847862554,0.00573017,88418.0,88416.0,0.226202]
[1742847862767,0.226192,88421.0,88416.0,0.226202]
[1742847863001,0.0057293,88417.0,88416.0,0.226202]
[1742847863209,0.226192,88421.0,88415.0,0.352325]
[1742847863399,0.00573017,88417.0,88416.0,0.226203]
[1742847863613,0.226192,88421.0,88415.0,0.352325]
[1742847863850,0.00573017,88417.0,88415.0,0.352325]
[1742847864058,0.226192,88421.0,88416.0,0.226201]
[1742847864407,0.00042304,88422.0,88418.0,0.226196]
[1742847865257,0.00042304,88422.0,88421.0,0.318099]
[1742847865577,0.00042304,88422.0,88421.0,0.43235664]
[1742847866107,0.00042304,88422.0,88421.0,0.73235664]
[1742847866311,0.00042304,88422.0,88421.0,0.74355088]
[1742847867461,0.00042304,88422.0,88421.0,0.73235664]
[1742847867780,0.00042304,88422.0,88421.0,0.85847664]
[1742847868547,0.00042304,88422.0,88421.0,0.86968557]
[1742847868752,0.00042304,88422.0,88421.0,0.87268557]
[1742847874693,0.00042304,88422.0,88421.0,0.86147664]
[1742847878879,0.00042304,88422.0,88421.0,0.87601749]
[1742847879383,0.00042304,88422.0,88421.0,0.91109321]
[1742847880510,0.00042304,88422.0,88421.0,0.87301749]
[1742847880949,0.00042304,88422.0,88421.0,0.91708033]
[1742847881161,0.00042304,88422.0,88421.0,0.91208033]
[1742847881420,0.00042304,88422.0,88421.0,0.90808033]
[1742847881600,0.00142304,88422.0,88421.0,0.98390045]
[1742847881889,0.00142304,88422.0,88421.0,0.91808033]
[1742847882291,0.00142304,88422.0,88421.0,0.88301749]
[1742847882936,0.00142304,88422.0,88421.0,1.42097749]
[1742847888012,0.00142304,88422.0,88421.0,1.82957749]
[1742847891546,0.00142304,88422.0,88421.0,2.2632344]
[1742847891748,0.0003396,88427.0,88426.0,0.65842585]
[1742847891749,6.4e-07,88427.0,88426.0,0.65842585]
[1742847891921,6.4e-07,88427.0,88426.0,0.92089372]
[1742847892688,6.4e-07,88427.0,88426.0,0.92930653]
[1742847893685,0.0003398,88440.0,88439.0,0.537451]
[1742847893839,0.0003398,88440.0,88439.0,1.23593518]
[1742847895054,0.0003398,88440.0,88439.0,1.25809513]
[1742847895251,0.0003398,88440.0,88439.0,1.26409513]
[1742847895473,0.0003398,88440.0,88439.0,1.2290488]
[1742847895824,0.0003398,88440.0,88439.0,1.26408332]
[1742847896225,0.0003398,88440.0,88439.0,1.26908332]
[1742847896610,0.0003398,88440.0,88439.0,1.2340488]
[1742847897111,0.0003398,88440.0,88439.0,1.26907654]
[1742847897522,0.0003398,88440.0,88439.0,1.2340488]
[1742847898855,0.0003398,88440.0,88439.0,1.2590488]
[1742847898856,8e-07,88440.0,88439.0,1.2590488]
[1742847899167,8e-07,88440.0,88439.0,1.29407552]
[1742847901520,8e-07,88440.0,88439.0,1.26907552]
[1742847902069,8e-07,88440.0,88439.0,1.1080088]
[1742847902224,0.0459008,88440.0,88439.0,1.2340488]
[1742847903211,0.0459008,88440.0,88439.0,1.1080088]
[1742847903438,0.0459008,88440.0,88439.0,1.2340488]
[1742847903635,0.0459008,88440.0,88439.0,1.7718888]
[1742847905043,0.0459008,88440.0,88439.0,1.6458488]
[1742847905238,0.0459008,88440.0,88439.0,1.7718888]
[1742847906226,0.0459008,88440.0,88439.0,1.7668888]
[1742847906405,0.0459008,88440.0,88439.0,1.7718888]
[1742847907178,0.0459008,88440.0,88439.0,1.7658888]
[1742847907383,0.0459008,88440.0,88439.0,1.7708888]
[1742847907764,0.0459008,88440.0,88439.0,1.7710585]
[1742847908982,0.0459008,88440.0,88439.0,1.75651765]
[1742847910846,8e-07,88440.0,88439.0,1.7710585]
[1742847911485,8e-07,88440.0,88439.0,1.6450185]
[1742847911726,8e-07,88440.0,88439.0,1.7710585]
[1742847912396,8e-07,88440.0,88439.0,1.87187902]
[1742847915798,8e-07,88440.0,88439.0,1.7710585]
[1742847920225,0.0459008,88440.0,88439.0,1.75647765]
[1742847928109,0.0459008,88440.0,88439.0,1.7710185]
[1742847928317,8e-07,88440.0,88439.0,1.80611948]
[1742847929283,8e-07,88440.0,88439.0,1.83111948]
[1742847929689,8e-07,88440.0,88439.0,1.83611948]
[1742847929891,8e-07,88440.0,88439.0,1.90881948]
[1742847930258,8e-07,88440.0,88439.0,1.90981948]
[1742847930460,8e-07,88440.0,88439.0,1.92034648]
[1742847930871,0.0453,88470.0,88463.0,0.537387]
[1742847931128,0.00075091,88464.0,88463.0,1.1862432]
[1742847931305,0.00075091,88464.0,88463.0,0.8862432]
[1742847931510,0.00075091,88464.0,88463.0,0.89774434]
[1742847933033,0.00075091,88464.0,88463.0,0.92395543]
[1742847933414,0.00075091,88464.0,88463.0,0.92795543]
[1742847933816,0.00075091,88464.0,88463.0,0.93657735]
[1742847934118,0.00075091,88464.0,88463.0,0.92507621]
[1742847935350,0.00075091,88464.0,88463.0,0.93618664]
[1742847939346,0.00075091,88464.0,88463.0,1.47394664]
[1742847946694,0.00075091,88464.0,88463.0,1.34794664]
[1742847946932,0.00075091,88464.0,88463.0,1.46990664]
[1742847947134,0.00075091,88464.0,88463.0,1.47390664]
[1742847947550,0.00075091,88464.0,88463.0,1.46990664]
[1742847947767,0.00075091,88464.0,88463.0,1.46379621]
[1742847948179,0.00075091,88464.0,88463.0,1.47496417]
[1742847950907,0.00075091,88464.0,88463.0,1.45517429]
[1742847952053,7.1e-07,88466.0,88465.0,0.25692185]
[1742847952278,7.1e-07,88466.0,88465.0,0.69617949]
[1742847952279,9.7e-07,88466.0,88465.0,0.69617949]
[1742847952485,9.7e-07,88466.0,88465.0,0.73113182]
[1742847952907,9.7e-07,88466.0,88465.0,1.13973038]
[1742847954593,9.7e-07,88466.0,88465.0,1.14473038]
[1742847954994,9.7e-07,88466.0,88465.0,1.13973038]
[1742847955198,0.00034037,88466.0,88465.0,1.13973038]
[1742847955394,0.00034037,88466.0,88465.0,1.14573038]
[1742847955659,0.00034037,88466.0,88465.0,1.15173038]
[1742847956272,0.00034037,88466.0,88465.0,1.18759817]
[1742847956476,0.00034037,88466.0,88465.0,1.1517209]
[1742847956933,0.0116386,88498.0,88465.0,1.1517209]
[1742847956934,0.0003396,88498.0,88497.0,0.237295]
[1742847957134,0.0003396,88498.0,88497.0,1.43833168]
[1742847957340,0.00046277,88498.0,88497.0,1.43833168]
[1742847959003,0.00046277,88498.0,88497.0,1.56501162]
[1742847959641,0.00046277,88498.0,88497.0,1.56801162]
[1742847961318,0.00046277,88498.0,88497.0,1.38582001]
[1742847961538,0.00046277,88498.0,88497.0,1.52303901]
[1742847962348,0.00046277,88498.0,88497.0,1.52003901]
[1742847962556,0.00046277,88498.0,88497.0,1.27905084]
[1742847962717,0.00046277,88498.0,88497.0,1.33964581]
[1742847963117,0.00046277,88498.0,88497.0,1.45390345]
[1742847963475,0.00046277,88498.0,88497.0,1.44990345]
[1742847963681,0.00046277,88498.0,88497.0,1.45490345]
[1742847963882,0.00046277,88498.0,88497.0,1.4694443]
[1742847964081,0.00046277,88498.0,88497.0,1.54026442]
[1742847964285,0.00046277,88498.0,88497.0,1.4694443]
[1742847966742,0.00046277,88498.0,88497.0,1.4696139]
[1742847972092,0.00046277,88498.0,88497.0,1.32915305]
[1742847972323,0.00046277,88498.0,88497.0,1.45507305]
[1742847972551,0.00046277,88498.0,88497.0,1.32915305]
[1742847972759,0.00046277,88498.0,88497.0,1.45507305]
[1742847983198,0.00046277,88498.0,88497.0,1.45503305]
[1742847986370,0.01148726,88498.0,88497.0,1.44373405]
[1742847986580,0.00046277,88498.0,88497.0,1.44373405]
[1742847987537,0.00046277,88498.0,88497.0,1.45503305]
[1742847993187,0.00046277,88498.0,88497.0,1.32915305]
[1742847993424,0.00046277,88498.0,88497.0,1.45503305]
[1742847993898,0.00584689,88498.0,88497.0,1.45503305]
[1742847994133,0.00046277,88498.0,88497.0,1.45503305]
[1742847994378,0.00584689,88498.0,88497.0,1.45503305]
[1742847994608,0.00046277,88498.0,88497.0,1.45503305]
[1742847995648,0.00584689,88498.0,88497.0,1.45503305]
[1742847995878,0.00046277,88498.0,88497.0,1.45503305]
[1742848001653,0.00584689,88498.0,88497.0,1.45503305]
[1742848001868,0.00046277,88498.0,88497.0,1.45503305]
[1742848002251,0.27365577,88498.0,88497.0,0.95544779]
[1742848002480,0.29034912,88498.0,88497.0,0.6727296]
[1742848003134,0.29034912,88498.0,88497.0,0.6677296]
[1742848003530,0.29034912,88498.0,88497.0,0.6697296]
[1742848003740,0.29034912,88498.0,88497.0,0.6657296]
[1742848004704,0.29034912,88498.0,88497.0,0.6667296]
[1742848010956,0.27905012,88498.0,88497.0,0.6667296]
[1742848011206,0.27905012,88498.0,88497.0,0.5408496]
[1742848011457,0.27905012,88498.0,88497.0,0.6667296]
[1742848012602,0.05305712,88498.0,88497.0,0.6667296]
[1742848012931,0.27905012,88498.0,88497.0,0.6667296]
[1742848013154,0.05305712,88498.0,88497.0,0.6667296]
[1742848014394,0.05305712,88498.0,88497.0,0.8927256]
[1742848016385,0.05305712,88498.0,88497.0,0.6667296]
[1742848016702,0.27905012,88498.0,88497.0,0.6667296]
[1742848018598,0.05305712,88498.0,88497.0,0.3550456]
[1742848018806,0.05305712,88498.0,88497.0,0.48060224]
[1742848019005,0.04766277,88498.0,88497.0,0.48060224]
[1742848030070,0.04766277,88498.0,88497.0,0.0031696]
[1742848030211,0.28495477,88498.0,88497.0,0.1290496]
[1742848030429,0.29033597,88498.0,88497.0,0.1290496]
[1742848030833,0.29033597,88498.0,88497.0,0.0031696]
[1742848031294,0.36943597,88498.0,88497.0,0.1290496]
[1742848032024,0.36943597,88498.0,88497.0,0.0011696]
[1742848033078,0.36943597,88498.0,88497.0,0.0001696]
[1742848046730,0.66943597,88498.0,88497.0,0.0001696]
[1742848049268,0.78369361,88498.0,88497.0,5.64e-05]
[1742848050030,0.66751599,88498.0,88497.0,5.64e-05]
[1742848052208,0.78177363,88498.0,88497.0,5.64e-05]
[1742848053658,0.78377363,88498.0,88497.0,5.64e-05]
[1742848054477,0.78577363,88498.0,88497.0,5.64e-05]
[1742848054933,0.78377363,88498.0,88497.0,5.64e-05]
[1742848055151,0.80779705,88498.0,88497.0,5.64e-05]
[1742848055354,0.80979705,88498.0,88497.0,5.64e-05]
[1742848059417,0.78577363,88498.0,88497.0,5.64e-05]
[1742848059898,0.78611323,88498.0,88497.0,5.64e-05]
[1742848076510,0.78611323,88498.0,88467.0,0.0776]
[1742848076511,0.22607,88468.0,88467.0,0.0776]
[1742848076810,0.22607,88468.0,88465.0,0.53768]
[1742848076811,0.237375,88467.0,88466.0,0.12588]
[1742848077161,0.24258199,88467.0,88466.0,0.12588]
[1742848077583,0.237378,88466.0,88465.0,0.53768]
[1742848077784,0.237378,88466.0,88465.0,0.66356]
[1742848077989,0.24258586,88466.0,88465.0,0.66368317]
[1742848080119,0.24258586,88466.0,88465.0,0.66668317]
[1742848081086,0.24258586,88466.0,88465.0,0.12900317]
[1742848081403,0.24258586,88466.0,88465.0,0.13100317]
[1742848081584,0.23128286,88466.0,88465.0,0.13100317]
[1742848081716,0.24258586,88466.0,88465.0,0.13100317]
[1742848082528,0.24258586,88466.0,88465.0,0.13117297]
[1742848102384,0.2393587,88466.0,88465.0,0.13117297]
[1742848103070,0.23581136,88466.0,88465.0,0.13117297]
[1742848103280,0.23187164,88466.0,88465.0,0.13117297]
[1742848106559,0.29497036,88466.0,88465.0,0.00529297]
[1742848106767,0.23187164,88466.0,88465.0,0.00529297]
[1742848107384,0.31227164,88466.0,88465.0,0.00529297]
[1742848107765,0.31227164,88466.0,88465.0,0.00229297]
[1742848108005,0.31227164,88466.0,88465.0,0.00029297]
[1742848108403,0.31327164,88466.0,88465.0,0.00029297]
[1742848108657,0.42503534,88466.0,88465.0,0.00029297]
[1742848108871,0.88879298,88466.0,88465.0,0.00029297]
[1742848109293,0.011305,88449.0,88448.0,0.5378]
[1742848109512,0.237424,88449.0,88448.0,0.53821111]
[1742848109735,0.24250397,88449.0,88448.0,0.53821111]
[1742848111451,0.24250397,88449.0,88448.0,0.53921111]
[1742848112018,0.24250397,88449.0,88448.0,0.54121111]
[1742848112568,0.24250397,88449.0,88448.0,0.53821111]
[1742848113980,0.24250397,88449.0,88448.0,0.53921111]